{"text_format":"1","workbook":"xlsx","n_sheets":1,"sheets":["Sheet1"],"not_rendered":{"charts":0,"images":0,"macros":0,"external_links":0,"defined_names":0,"comments":0,"pivot_tables":0},"unopened":[],"bounds":{"document_bytes":16777216,"sheet_cells":100000,"rows_first":2000,"rows_last":500,"rows_between":2000,"halvings":0,"cell_chars":16384,"cell_head_chars":4096},"cells_cut":0,"cells_raw":0,"read":"whole","date_system":"1900"}

{"sheet":"Sheet1","index":0,"n_rows":45,"n_cols":16,"rows_kept":45,"cut":false,"hidden":false,"merged":[[7,10,7,13],[9,10,9,14],[27,2,27,3],[28,2,28,3],[38,6,38,7],[23,2,23,3],[30,2,30,3],[31,2,31,3],[22,12,23,12],[22,13,23,13],[25,2,25,3],[26,2,26,3],[34,2,34,3],[35,2,35,3],[19,1,19,15],[7,1,9,2],[4,3,4,6],[22,2,22,3],[39,1,39,2],[39,3,39,4],[43,1,43,2],[41,3,41,4],[42,3,42,4],[43,3,43,4],[41,1,41,2],[42,1,42,2],[32,2,32,3],[33,2,33,3],[40,3,40,4],[38,1,38,4],[40,1,40,2],[20,1,20,15],[36,1,36,14],[29,2,29,3],[0,0,0,15],[1,0,1,15],[2,0,2,15],[24,2,24,3],[11,7,11,15],[12,7,12,15],[13,7,13,15],[14,7,14,15],[4,10,4,13],[22,15,23,15],[22,14,23,14],[6,7,6,8],[39,6,39,15],[4,0,4,2],[4,7,4,9],[7,3,9,6],[42,5,42,7],[22,8,22,10],[16,1,16,15],[11,1,11,6],[22,4,23,4],[22,5,23,5],[22,6,23,6],[12,1,12,6],[38,8,38,14],[40,5,40,7],[40,8,40,14],[42,8,42,14]]}
[" OFFICIALS TRAVEL EXPENSE CLAIM FORM"]
["Save the form on your computer, complete it, save it and forward it to johncull@telus.net along with scanned copies of receipts.  OR  Complete the form and "]
["mail it with receipts to John Cull at: 12691 55A Ave. Surrey, BC  V3X 1W1.  You will only be able to enter information in the sections noted in blue"]
[]
["Submitted by:",null,null,null,null,null,null,"Date Submitted:"]
[]
[null," ",null,null,null,null,null," ",null," "]
[null,"Full Mailing Address:",null,null,null,null,null,null,null,"Ph:"]
[]
[null,null,null,null,null,null,null,null,null,"Email:"]
[]
[null,"Submit form and receipts directly to John Cull (johncull@telus.net)",null,null,null,null,null,"Record final destination (stadium) under \"Destination\""]
[null,"Submit form and receipts within 30 days of the event",null,null,null,null,null,"Record passenger name under \"Passenger if claiming car pool rate"]
[null,"Use one line for each event",null,null,null,null,null,"Record mileage in km, include the round trip trip under \"Total km\""]
[null,"Record departure point under \"Departure\"",null,null,null,null,null,"* Receipts to be submitted by mail, PDF, or electronically (scanned)"]
[]
[null,"Staff will apply the mileage rate:"]
[null,"A  (Local Region) $.30/km",null,null,"B  (Local Region Car Pool) $.40/km",null,null,"C  (Out of Region) $.20/km",null,null,null,"D  Out of Region Car Pool) $.25/km"]
[]
[null,"Only non-mileage amounts will show in the \"Amount\" column.  The final amount owing will be calculated when the mileage rate is assigned.   "]
[]
[]
[null,"Date of  ","Neme",null,"Departure","Destination","Passenger","Total","* Receipts must be submitted",null,null,"GST","Budget","Rate","Mileage","Amount"]
[null,"Event","of Event",null,null,null,null,"km","Ferry","Tolls","Parking","Paid"]
[null,null,null,null,null,null,null,0,null,null,null,null," ",0,{"$f":"PRODUCT(H25*N25)","v":0},{"$f":"SUM(I25+J25+K25+O25)","v":0}]
[null,null," ",null,null,null,null,null,null,null,null,null,null,null,{"$f":"PRODUCT(H26*N26)","v":0},{"$f":"SUM(I26+J26+K26+O26)","v":0}]
[null,null,null,null,null,null," ",null,null,null,null,null,null,null,0,0]
[]
[]
[null,null,null,null,null,null,null,null,null,null,null,null,null,null,0,0]
[null,null,null,null,null,null,null,null,null,null,null,null,null,null,0,0]
[null,null,null,null,null,null,null,null,null,null,null,null,null,null,0,0]
[null,null,null,null,null,null,null,null,null,null,null,null,null,null,0,0]
[null,null,null,null,null,null,null,null,null,null,null,null,null,null,0,0]
[null,null,null,null,null,null,null,null,null,null,null,null,null,null,0,0]
[null,null,null,null,null,null,null,null,null,null,null,null,null,null,0,0]
[null,"TOTAL AMOUNT OF CLAIM  ",null,null,null,null,null,null,null,null,null,null,null,null,null,{"$f":"SUM(P25:P36)","v":0}]
[]
[null,"Paid (Office Use)",null,null,null,null,"Cheque Payable To:",null," "]
[null,"Date:",null,"Chq. #:"]
[null,"Budget Allocation",null,"Amount",null,"    Committee Chair/Staff Approval:"]
[]
[null,null,null,null,null,"        BC Athletics Pres/CEO Signature:"]
[null,null,null,null,null,null,null,null,null,null,null,null,null,null,null,"2017-03-28"]
[null,null,null,null,null,null,null,null,null,null,null,null,null,null,null," "]